Cogmind - Beta 13 @@@ ROGUE MODE // 2024.04.11 @ 17:08:58 Player: Lunace Result: Self-destructed Performance ------------- Evolutions (2) 1000 Regions Visited (4) 800 Robots Destroyed (26) 130 Value Destroyed (730) 730 Prototype IDs (2) 40 Alien Tech Used (0) 0 Bonus (71) 71 TOTAL SCORE: 2771 Bonus ------- Follower Combat Kills 95 Friendly Fire -24 Cogmind --------- Core Integrity 293/550 Matter 240/300 Energy 12/100 System Corruption 1% Temperature Cool (0) Movement Rolling (130) Ox2 Location -8/Materials Parts ------- > --- POWER (1) -------- (None) > --- PROPULSION (2) --- Compact Wheel > --- UTILITY (6) ------ Improved Heat Sink High-capacity Storage Unit Structural Scanner Signal Interpreter > --- WEAPON (2) ------- Mining Laser > --- INVENTORY (20) --- Compact Wheel VTOL Module VTOL Module VTOL Module VTOL Module Cooling System Medium Matter Pod (100) Medium Matter Pod (100) Sensor Array Long-range Tractor Beam Peak State ------------ > --- POWER ------------ Deuterium Engine > --- PROPULSION ------- Wheel Wheel > --- UTILITY ---------- Improved Heat Sink High-capacity Storage Unit Structural Scanner Signal Interpreter Light Armor Plating Long-range Tractor Beam > --- WEAPON ----------- Medium Laser Small Laser > --- INVENTORY -------- Ion Engine Wheel Compact Wheel Compact Wheel Compact Wheel VTOL Module VTOL Module VTOL Module VTOL Module Cooling System Medium Matter Pod Medium Matter Pod Light Armor Plating Long-range Tractor Beam Small Laser Small Laser EMP Blaster Mining Laser [Rating: 19] Favorites ----------- Power Ion Engine Engine Ion Engine Propulsion Compact Wheel Wheel Compact Wheel Utility Structural Scanner Device Structural Scanner Storage High-capacity Storage Unit Processor Signal Interpreter Protection Light Armor Plating Weapon Medium Laser Energy Gun Medium Laser Ballistic Gun Light Assault Rifle Launcher EMP Blaster Special Weapon Mining Laser Build | -11 -10 -10 -9 -8 ------- Run | Yrd Mat Min Mat Mat Slots Evolved 4 | . . . 2 2 Power . | . . . . . Propulsion . | . . . . . Utility 4 | . . . 2 2 Weapon . | . . . . . Parts Attached 34 | 6 2 9 4 13 Power 6 | 1 . 2 1 2 Engine 6 | 1 . 2 1 2 Core . | . . . . . Reactor . | . . . . . Propulsion 8 | 2 . 3 . 3 Treads . | . . . . . Leg . | . . . . . Wheel 8 | 2 . 3 . 3 Hover . | . . . . . Flight . | . . . . . Utility 10 | 1 2 1 2 4 Device 5 | . 1 . 2 2 Storage 2 | 1 1 . . . Processor 1 | . . 1 . . Hackware . | . . . . . Protection 2 | . . . . 2 Artifact . | . . . . . Weapon 10 | 2 . 3 1 4 Energy Gun 6 | 2 . 1 1 2 Energy Cannon . | . . . . . Ballistic Gun 1 | . . 1 . . Ballistic Cannon . | . . . . . Launcher 1 | . . . . 1 Special Weapon 2 | . . 1 . 1 Impact Weapon . | . . . . . Slashing Weapon . | . . . . . Piercing Weapon . | . . . . . Special Melee Weapon . | . . . . . Unidentified Prototypes . | . . . . . Parts Lost 17 | . . 2 1 14 Power 3 | . . 1 . 2 Propulsion 4 | . . . . 4 Utility 3 | . . . . 3 Weapon 7 | . . 1 1 5 Highest Loss Streak 14 | . . 1 1 14 To Critical Strikes . | . . . . . Average Slot Usage (%) 96 | . 98 97 99 89 Engine 11 | . 14 12 11 8 Wheel 24 | . 28 28 22 15 Device 16 | . 12 12 22 24 Storage 12 | . 14 14 11 9 Processor 3 | . . . 11 9 Protection 1 | . . . . 6 Energy Gun 19 | . 28 15 19 15 Ballistic Gun 4 | . . 10 2 . Naked Turns . | . . . . . Heaviest Build 58 | 13 49 49 50 58 Greatest Support 32 | 32 32 32 20 32 Greatest Overweight (x) 5 | . 1 2 2 5 Average Overweight (x) 1 | . . 1 2 2 Largest Inventory Capacity 20 | 8 20 20 20 20 Average Capacity 19 | 7 17 20 20 20 Most Carried 19 | 2 5 10 17 19 Average Carried 7 | . 3 5 11 16 Final Capacity 20 | 8 20 20 20 20 Final Carried 17 | 2 5 10 17 10 Class Distribution -------------------- 83% | Mutant 16% | Scavenger-Mutant Dominant Class ---------------- Mutant | -10/Materials Mutant | -10/Mines Scavenger-Mutant | -9/Materials Mutant | -8/Materials Resources | -11 -10 -10 -9 -8 ----------- Run | Yrd Mat Min Mat Mat Matter Collected 514 | 251 29 138 56 40 Remotely 40 | . . . . 40 Salvage Created 958 | . 211 313 266 168 Parts 47 | . 9 19 16 3 Haulers Intercepted . | . . . . . Recyclers Shooed 1 | . . 1 . . Parts Field Recycled . | . . . . . Retrieved Matter . | . . . . . Parts Self-Destructed . | . . . . . Prevented . | . . . . . Kills | -11 -10 -10 -9 -8 ------- Run | Yrd Mat Min Mat Mat Combat Hostiles Destroyed 20 | . 4 8 5 3 Guns 19 | . 4 8 5 2 AOE 1 | . . . . 1 Classes Destroyed 7 | . 2 3 1 1 Worker 2 | . . 2 . . Recycler 1 | . . 1 . . Watcher 3 | . 2 . 1 . Swarmer 6 | . . 6 . . Grunt 10 | . 4 2 3 1 Duelist 1 | . . . . 1 Sentry 3 | . . . 2 1 Best Kill Streak 5 | . 2 5 2 1 Combat Bots Only 2 | . 2 2 2 1 Max Kills in Single Turn 1 | . 1 1 1 1 Gunslinging . | . . . . . Exploded 1 | . . . . 1 Melee . | . . . . . Uniques/NPCs Destroyed . | . . . . . Combat | -11 -10 -10 -9 -8 -------- Run | Yrd Mat Min Mat Mat Hostile Shots Fired 146 | . 14 34 21 77 Missed 42 | . 5 7 7 23 Damage Taken 1730 | . 114 313 176 1127 Core 401 | . 21 82 41 257 Absorbed by Shields . | . . . . . Core Remaining (%) 82 | 100 . 58 89 . Volleys Fired 97 | . 15 37 23 22 Largest 2 | . 2 2 2 2 Hottest 100 | . 90 100 90 90 Shots Fired 180 | . 29 64 46 41 Gun 165 | . 29 54 46 36 Cannon . | . . . . . Launcher 5 | . . . . 5 Special 10 | . . 10 . . Kinetic 23 | . . 17 6 . Thermal 152 | . 29 47 40 36 Explosive . | . . . . . Electromagnetic 5 | . . . . 5 Robot Hit Streak 15 | . 9 10 11 15 Robot Miss Streak 3 | . 1 2 3 3 Penetration Max . | . . . . . Secondary Targets 2 | . . 2 . . Max Gunslinging Chain 1 | . . 1 . . Shots Hit Robots 117 | . 22 34 32 29 Core Hits 58 | . 12 21 11 14 Critical Kills . | . . . . . Critical Parts Destroyed . | . . . . . Critical Strikes 4 | . . . 3 1 Burn 4 | . . . 3 1 Melee Attacks . | . . . . . Impact . | . . . . . Slashing . | . . . . . Piercing . | . . . . . Sneak Attacks . | . . . . . Combat Hostiles . | . . . . . Follow-up Attacks . | . . . . . Damage Inflicted 1669 | . 261 393 365 650 Guns 1321 | . 261 393 365 302 Cannons . | . . . . . Explosions 348 | . . . . 348 Melee . | . . . . . Ramming . | . . . . . Kinetic 133 | . . 99 34 . Thermal 1192 | . 261 294 331 306 Explosive . | . . . . . Electromagnetic 344 | . . . . 344 Impact . | . . . . . Slashing . | . . . . . Piercing . | . . . . . Highest Corruption 3 | . . . 3 1 Average Corruption 1 | . . . 1 1 Corruption Purged . | . . . . . Corruption Blocked . | . . . . . Effects 2 | . . . 2 . Message Errors 1 | . . . 1 . Energy Discharges 1 | . . . 1 . Overload Shots . | . . . . . Overflow Damage 31 | . . . . 31 Projectiles . | . . . . . Explosions 31 | . . . . 31 Melee . | . . . . . Knockbacks . | . . . . . Impact . | . . . . . Kinetic . | . . . . . Secondary . | . . . . . Self-Inflicted Damage 131 | . . . . 131 Shots 6 | . . . . 6 Rammed . | . . . . . Targets Rammed . | . . . . . Kicked . | . . . . . Crushed . | . . . . . Highest Temperature 174 | . 140 174 7 21 Average Temperature 43 | . 53 45 4 7 Received Heat Transfer 744 | . 87 120 69 468 Siege Activations . | . . . . . Robots Corrupted . | . . . . . Combat Hostiles . | . . . . . Parts Fried . | . . . . . Impact Corruptions . | . . . . . Robots Melted . | . . . . . Combat Hostiles . | . . . . . Parts Melted 15 | . 2 4 5 4 Heat Transferred 3530 | . 706 840 1138 846 Parts Sabotaged . | . . . . . Parts Stolen . | . . . . . Parts Stripped . | . . . . . Power Chain Reactions 1 | . . . . 1 Alert | -11 -10 -10 -9 -8 ------- Run | Yrd Mat Min Mat Mat Peak Influence 300 | . 174 300 240 146 Initial 101 | . . 67 68 101 Average 137 | . 106 192 174 41 Maximum Alert Level 1 | . . 1 1 . Low Security (%) 72 | 100 100 45 64 100 Level 1 27 | . . 54 35 . Level 2 . | . . . . . Level 3 . | . . . . . Level 4 . | . . . . . Level 5 . | . . . . . High Security . | . . . . . Max Security . | . . . . . Squads Dispatched 2 | . . . 1 1 Investigation 2 | . . . 1 1 Extermination . | . . . . . Reinforcement . | . . . . . Assault . | . . . . . Garrison . | . . . . . Intercept . | . . . . . Searches Triggered . | . . . . . Construction Impeded . | . . . . . Haulers Reinforced . | . . . . . Active Scanning Responses . | . . . . . Cargo Convoy Interrupts . | . . . . . Stealth | -11 -10 -10 -9 -8 --------- Run | Yrd Mat Min Mat Mat Distress Signals . | . . . . . Communications Jammed . | . . . . . Distress Signals . | . . . . . Times Spotted 45 | . 10 14 8 13 Peak Tracking Total 6 | . 2 4 3 6 Tactical Retreats 5 | . 1 2 . 2 Traps | -11 -10 -10 -9 -8 ------- Run | Yrd Mat Min Mat Mat Traps Triggered 1 | . . . 1 . Indirectly . | . . . . . Trap Hack Attempts . | . . . . . Triggered . | . . . . . Disarmed . | . . . . . Reprogrammed . | . . . . . Reused . | . . . . . Traps Extracted . | . . . . . Installed . | . . . . . Triggered . | . . . . . Machines | -11 -10 -10 -9 -8 ---------- Run | Yrd Mat Min Mat Mat Machines Disabled 4 | . . . . 4 Max in Single Turn 3 | . . . . 3 Machines Repaired . | . . . . . Machines Dismantled . | . . . . . Machines Sabotaged . | . . . . . Overloaded Fab Kills . | . . . . . Hacking | -11 -10 -10 -9 -8 --------- Run | Yrd Mat Min Mat Mat Machines Accessed 7 | . 2 . 2 3 Terminals 6 | . 2 . 1 3 Fabricators . | . . . . . Repair Stations . | . . . . . Recycling Units 1 | . . . 1 . Scanalyzers . | . . . . . Garrison Access . | . . . . . Total Hacks 19 | . 7 . 3 9 Successful 7 | . 2 . 1 4 Failed 12 | . 5 . 2 5 Catastrophic 3 | . 1 . . 2 Database Lockouts . | . . . . . Manual 14 | . 5 . 2 7 Terminals 18 | . 7 . 2 9 Fabricators . | . . . . . Repair Stations . | . . . . . Recycling Units 1 | . . . 1 . Scanalyzers . | . . . . . Garrison Access . | . . . . . Terminal Hacks 5 | . 1 . . 4 Prototype ID Bank 1 | . . . . 1 Level Access Points 1 | . . . . 1 Branch Access Points 2 | . 1 . . 1 Unreport Threat 1 | . . . . 1 Fabricator Hacks . | . . . . . Repair Station Hacks . | . . . . . Recycling Unit Hacks 1 | . . . 1 . Report Inventory 1 | . . . 1 . Scanalyzer . | . . . . . Garrison Access Hacks . | . . . . . Unauthorized Hacks 1 | . 1 . . . Terminals 1 | . 1 . . . Operators 1 | . 1 . . . Fabricators . | . . . . . Repair Stations . | . . . . . Recycling Units . | . . . . . Scanalyzers . | . . . . . Garrison Access . | . . . . . Data Cores Recovered . | . . . . . Used . | . . . . . Hacking Detections 6 | . 2 . 1 3 Full Trace Events 2 | . . . 1 1 Feedback Events 1 | . . . 1 . Corruption 1 | . . . 1 . Feedback Blocked . | . . . . . Robot Schematics Acquired . | . . . . . Robots Built . | . . . . . Authchips . | . . . . . Time . | . . . . . Total Robot Build Rating . | . . . . . Part Schematics Acquired . | . . . . . Parts Built . | . . . . . Authchips . | . . . . . Time . | . . . . . Total Part Build Rating . | . . . . . Parts Repaired . | . . . . . Time . | . . . . . Parts Recycled . | . . . . . Recycled Matter . | . . . . . Retrieved Matter . | . . . . . Retrieved Components . | . . . . . Parts Scanalyzed . | . . . . . Part Schematics Acquired . | . . . . . Parts Damaged . | . . . . . Bothacking | -11 -10 -10 -9 -8 ------------ Run | Yrd Mat Min Mat Mat Used RIF Installer . | . . . . . Robots Hacked . | . . . . . Non-combat . | . . . . . Combat . | . . . . . Robot Hacks Applied . | . . . . . Relay Couplers Released . | . . . . . Fabnet Peak Effective % . | . . . . . Robots Rewired . | . . . . . Allies Hacked . | . . . . . Hacks Repelled . | . . . . . Allies | -11 -10 -10 -9 -8 -------- Run | Yrd Mat Min Mat Mat Total Allies 1 | . . 1 . . Largest Group 1 | . . 1 . . Highest-Rated Group 31 | . . 31 . . Highest-Rated Ally 31 | . . 31 . . Total Orders . | . . . . . Ally Attacks 20 | . . 20 . . Total Damage 335 | . . 335 . . Kills 3 | . . 3 . . Allies Corrupted . | . . . . . Allies Melted . | . . . . . Intel | -11 -10 -10 -9 -8 ------- Run | Yrd Mat Min Mat Mat Robot Analysis Total . | . . . . . Derelict Logs Recovered 2 | . . 2 . . Drone Launches . | . . . . . Drone Recoveries . | . . . . . Exploration | -11 -10 -10 -9 -8 ------------- Run | Yrd Mat Min Mat Mat Turns Passed 1584 | 58 385 627 262 252 Spaces Moved 983 | 41 253 399 150 140 Core 1 | 1 . . . . Treads . | . . . . . Legs . | . . . . . Wheels 982 | 40 253 399 150 140 Hover . | . . . . . Flight . | . . . . . Fastest Speed 50 | 50 100 110 110 110 Average Speed 111 | 98 110 113 110 111 Slowest Speed 155 | 100 115 115 110 155 Overloaded Moves . | . . . . . Propulsion Burnouts . | . . . . . Robots Hopped . | . . . . . Cave-ins Triggered . | . . . . . Exploration Rate (%) 35 | 3 50 85 22 15 Regions Visited 4 Branch Regions 1 Pre-discovered Areas 1 | . . 1 . . Known Exits Taken 3 | . 1 1 1 . Unknown Exits Taken 1 | 1 . . . . Scrap Searched 1 | . . 1 . . Spaces Dug 1 | . . 1 . . Terrain Destroyed 5 | . . 1 . 4 Melee . | . . . . . Projectile 1 | . . 1 . . AOE 4 | . . . . 4 Terrain Rammed . | . . . . . Walls Destroyed . | . . . . . Machines Disabled . | . . . . . Actions | -11 -10 -10 -9 -8 --------- Run | Yrd Mat Min Mat Mat Total 1267 | 55 328 489 202 193 Wait 129 | 7 55 37 15 15 Move 979 | 40 252 398 149 140 Hop . | . . . . . Pick Up 22 | 2 3 5 10 2 Fast Attach 10 | 6 1 2 . 1 Attach 14 | . . 1 3 10 Detach 1 | . . 1 . . Swap 10 | . 1 6 1 2 Drop 5 | . 1 2 1 1 Fire 97 | . 15 37 23 22 Melee . | . . . . . Ram . | . . . . . Kick . | . . . . . Crush . | . . . . . Escape Stasis . | . . . . . Rewire . | . . . . . Trap . | . . . . . Miscellaneous . | . . . . . Route ------- -11/Scrapyard -10/Materials -10/Mines (discovered 3 exits: *Mat x2 / Sub) -9/Materials -8/Materials (discovered 3 exits: Fac x3) History --------- Turn | Location | Event 20 | -11/Scrapyard | Discovered new exit (range 15) 59 | -11/Scrapyard | Entered Materials 309 | -10/Materials | Build established: Mutant 361 | -10/Materials | Identified exit to Mines 444 | -10/Materials | Entered Mines 486 | -10/Mines | Discovered new exit (range 9) 611 | -10/Mines | Escorted by a lone wolf Derelict 631 | -10/Mines | Learned location of Storage (-9) 1014 | -10/Mines | Discovered new exit (range 12) 1016 | -10/Mines | Learned Materials emergency access door positions 1032 | -10/Mines | Identified exit to Subcaves 1053 | -10/Mines | Identified exit to Materials 1071 | -10/Mines | Entered Materials 1071 | -9/Materials | Evolved 2 slots: Utility x2 1316 | -9/Materials | Discovered new exit (range 13) 1332 | -9/Materials | Identified exit to Materials 1333 | -9/Materials | Entered another Materials area 1333 | -8/Materials | Evolved 2 slots: Utility x2 1394 | -8/Materials | Identified exit to Factory 1585 | -8/Materials | Self-destructed Last Messages --------------- 01547_ G-47 Trooper destroyed. 01549_ Critical hit (Burn: +37). 01551_ Deuterium Engine destroyed. 01559_ Wheel destroyed. 01561_ U-05 Engineer lays Concrete. 01565_ U-05 Engineer repairs door. 01566_ U-05 Engineer lays Concrete. 01575_ Door malfunctions. 01576_ G-47 Trooper misfires. 01578_ Electrolysis Chamber disabled. 01578_ Chain reaction triggered in Ion Engine. 01578_ Sml. Laser destroyed. 01578_ Destroyed Sml. Laser. 01578_ Neutrino Reactor explodes. 01578_ EMP Blaster destroyed. 01578_ Destroyed EMP Blaster. 01578_ G-47 Trooper destroyed. 01578_ Terminal disabled. 01579_ Com. Wheel destroyed. 01585_ G-47 Trooper IFF system glitched. Map ----- +----------------------------------------------------+ | ?????????????????????????????????????????????????? | | ?????????????????????????????????????????????????? | | ?????????????????????????????????????????????????? | | ?????????????????????????????????????????????????? | | ?????????????????????????????????????????????????? | | ?????????????????????????????????????????????????? | | ?????????????????????????????????????????????????? | | ?????????????????????????????????????????????????? | | ?????????????????????????????????????????????????? | | ?????????????????????????????????????????????????? | | ?????????????????????????????????????????????????? | | ?????????????????????????????????????????????????? | | ?????????????????????????????????????????????????? | | ?????????????????????????????????????????????????? | | ?????????????????????????????????????????????????? | | ????????????????????????#######??????????????????? | | ????????????????????????#######??????????????????? | | ???????????????????????? # ??????????????????? | | ????????????????????????? # ??????????????????? | | ???????????????????????? # ??????????????????? | | ????????????????????###### + ??????????????????? | | ???????????????########### # ??????????????????? | | ???????????????####### # # "" # #??????? | | ???????????????## # ##########+#+#??????? | | ???????????????## % ??????? | | ???????????????## =@[g ???????? | | ???????????????## ] #gg ???????? | | ???????????????## # ########## ?????????? | | ???????????????## # ######### ?????????? | | ???????????????## """ # u #########??########## | | ???????????????## """ # #########??########## | | ???????????????## # ##?### | | ???????????????##+######## ##?### | | ???????????? ##?##+ | | ??????????????????## #####/##### ##?### | | ?????????????????? # # % # ##?### | | ??????????? # ? ] + + "" T # ###### | | ??????????? # #### " # ############+# | | ??????????? # ???? #### " # | | ??????????? # ???????## / | | ?????????????????????## # | | ?????????????????????## # #######+######## | | ?????????????????????## # ## ### | | ?????????????????????############ ## ! T ### | | ?????????????????????############+## ### | | ????????????????????????## T # """ ! !! ## | | ????????????????????????## # """ !!!### | | ????????????????????????## ! # """ !!%+ | | ????????????????????????## # ### | | ????????????????????????########################## | +----------------------------------------------------+ Best States ------------- Heat Dissipation 45 Energy Generation 14 Energy Capacity 275 Matter Stores 300 Matter Capacity 300 Sight Range 16 Terrain Scan Density 10 Armor Coverage 150 Evasion (%) 40 Item Schematics ----------------- None Robot Schematics ------------------ None Fabricated ------------ Nothing Alien Tech Used ----------------- None Achievements -------------- None Challenges ------------ None Game ------ Seed HardcellClaymoresBattery Manual? 0 Play Time 00:14:34 Cumulative 57.4 hours Start 2024.04.11 @ 16:55:02 End 2024.04.11 @ 17:08:58 Sessions 1 Manual Loads 0 Difficulty Rogue Special Mode None Game No. 62 Rogue 57 Adventurer 5 Explorer 0 Win Type - Total 2 Types 1/0/0/1/0/0/0/0/0 Lore% 29 Gallery% 50 Achievement% 41 Wizard Run 0 Options --------- Layout 1 ASCII 0 Keyboard 0 Movement Mouse Keybinds 0 Fullscreen 1 Font 24/Terminus Map View 50x35 Zoom Use 0% Tactical HUD 1 Map Filters NONE Filters NONE Steam 1 RUN: d80b50ac-34ea-4dbe-a649-018986d7c274